[Event "Titled Tuesday Blitz June 8 2021"]
[White "Harutjunyan, Gevorg"]
[Black "Meekins, Kristopher C"]
[WhiteFideId "13300873"]
[BlackFideId "2005964"]
[WhiteElo "2498"]
[BlackElo "2391"]
[Result "1-0"]
[Round "01"]
[TimeControl "180+1"]
[Date "2021.06.08"]
[WhiteClock "0:01:06"]
[BlackClock "0:00:18"]

1. e4 {[%clk 0:02:57]}  e5 {[%clk 0:02:59]} 2. Nf3 {[%clk 0:02:57]}  Nc6 {[%clk 0:02:59]} 3. d4 {[%clk 0:02:57]}  exd4 {[%clk 0:02:59]} 4. Nxd4 {[%clk 0:02:58]}  Bc5 {[%clk 0:02:58]} 5. Nxc6 {[%clk 0:02:56]}  Qf6 {[%clk 0:02:57]} 6. Qf3 {[%clk 0:02:56]}  dxc6 {[%clk 0:02:54]} 7. Bc4 {[%clk 0:02:52]}  Qxf3 {[%clk 0:02:36]} 8. gxf3 {[%clk 0:02:51]}  Ne7 {[%clk 0:02:29]} 9. Be3 {[%clk 0:02:48]}  Bxe3 {[%clk 0:02:27]} 10. fxe3 {[%clk 0:02:48]}  Be6 {[%clk 0:02:22]} 11. Nd2 {[%clk 0:02:47]}  O-O-O {[%clk 0:02:21]} 12. Bxe6+ {[%clk 0:02:46]}  fxe6 {[%clk 0:02:20]} 13. Nc4 {[%clk 0:02:43]}  Ng6 {[%clk 0:02:13]} 14. Ke2 {[%clk 0:02:34]}  Rhf8 {[%clk 0:02:10]} 15. f4 {[%clk 0:02:24]}  c5 {[%clk 0:02:01]} 16. a4 {[%clk 0:02:19]}  Ne7 {[%clk 0:01:59]} 17. Rhg1 {[%clk 0:02:15]}  g6 {[%clk 0:01:58]} 18. Rg5 {[%clk 0:02:12]}  b6 {[%clk 0:01:57]} 19. a5 {[%clk 0:02:01]}  Nc6 {[%clk 0:01:53]} 20. c3 {[%clk 0:01:48]}  Kb7 {[%clk 0:01:35]} 21. h4 {[%clk 0:01:46]}  Rf7 {[%clk 0:01:27]} 22. h5 {[%clk 0:01:40]}  gxh5 {[%clk 0:01:27]} 23. a6+ {[%clk 0:01:38]}  Kc8 {[%clk 0:01:24]} 24. Rh1 {[%clk 0:01:36]}  Nb8 {[%clk 0:01:16]} 25. Rgxh5 {[%clk 0:01:30]}  Nxa6 {[%clk 0:01:10]} 26. Rxh7 {[%clk 0:01:30]}  Rxh7 {[%clk 0:01:10]} 27. Rxh7 {[%clk 0:01:31]}  Re8 {[%clk 0:01:06]} 28. Kf3 {[%clk 0:01:28]}  Nb8 {[%clk 0:01:02]} 29. Ne5 {[%clk 0:01:28]}  a5 {[%clk 0:00:58]} 30. c4 {[%clk 0:01:18]}  Kb7 {[%clk 0:00:55]} 31. Nf7 {[%clk 0:01:15]}  Kc6 {[%clk 0:00:49]} 32. f5 {[%clk 0:01:14]}  Nd7 {[%clk 0:00:42]} 33. Kf4 {[%clk 0:01:11]}  e5+ {[%clk 0:00:24]} 34. Kf3 {[%clk 0:01:12]}  Re7 {[%clk 0:00:19]} 35. Nd8+ {[%clk 0:01:09]}  Kd6 {[%clk 0:00:18]} 36. Nb7+ {[%clk 0:01:06]} 1-0


[Site "https://www.chess.com"]

[Event "Titled Tuesday Blitz June 8 2021"]
[White "Holt, Conrad"]
[Black "Bon, Michael"]
[WhiteFideId "2034387"]
[BlackFideId "620696"]
[WhiteElo "2786"]
[BlackElo "2425"]
[Result "0-1"]
[Round "01"]
[TimeControl "180+1"]
[Date "2021.06.08"]
[WhiteClock "0:00:01"]
[BlackClock "0:00:35"]

1. d4 {[%clk 0:02:57]}  d5 {[%clk 0:02:59]} 2. c4 {[%clk 0:02:57]}  Nc6 {[%clk 0:02:59]} 3. Nf3 {[%clk 0:02:50]}  Bg4 {[%clk 0:02:58]} 4. e3 {[%clk 0:02:46]}  e5 {[%clk 0:02:52]} 5. cxd5 {[%clk 0:02:44]}  Qxd5 {[%clk 0:02:51]} 6. Nc3 {[%clk 0:02:44]}  Bb4 {[%clk 0:02:50]} 7. Be2 {[%clk 0:02:41]}  exd4 {[%clk 0:02:49]} 8. exd4 {[%clk 0:02:27]}  Bxf3 {[%clk 0:02:48]} 9. Bxf3 {[%clk 0:02:26]}  Qc4 {[%clk 0:02:44]} 10. Be3 {[%clk 0:02:16]}  Bxc3+ {[%clk 0:02:33]} 11. bxc3 {[%clk 0:02:15]}  Qxc3+ {[%clk 0:02:33]} 12. Kf1 {[%clk 0:02:13]}  Nge7 {[%clk 0:02:04]} 13. Rc1 {[%clk 0:02:12]}  Qb4 {[%clk 0:01:39]} 14. d5 {[%clk 0:02:03]}  O-O-O {[%clk 0:01:11]} 15. g3 {[%clk 0:01:19]}  Nxd5 {[%clk 0:01:08]} 16. Qe2 {[%clk 0:00:36]}  Rhe8 {[%clk 0:01:05]} 17. Bxd5 {[%clk 0:00:19]}  Rxd5 {[%clk 0:01:02]} 18. Kg2 {[%clk 0:00:18]}  Qe4+ {[%clk 0:01:01]} 19. Qf3 {[%clk 0:00:16]}  Qxf3+ {[%clk 0:01:01]} 20. Kxf3 {[%clk 0:00:17]}  Rd6 {[%clk 0:00:58]} 21. Rc5 {[%clk 0:00:10]}  b6 {[%clk 0:00:55]} 22. Rg5 {[%clk 0:00:08]}  g6 {[%clk 0:00:54]} 23. Rc1 {[%clk 0:00:08]}  f5 {[%clk 0:00:52]} 24. Bf4 {[%clk 0:00:03]}  Nd4+ {[%clk 0:00:50]} 25. Kg2 {[%clk 0:00:03]}  Rc6 {[%clk 0:00:50]} 26. Rxc6 {[%clk 0:00:02]}  Nxc6 {[%clk 0:00:51]} 27. g4 {[%clk 0:00:02]}  Ne7 {[%clk 0:00:49]} 28. gxf5 {[%clk 0:00:02]}  Nxf5 {[%clk 0:00:50]} 29. Kf3 {[%clk 0:00:02]}  c5 {[%clk 0:00:49]} 30. Rg1 {[%clk 0:00:02]}  Kb7 {[%clk 0:00:48]} 31. Rd1 {[%clk 0:00:01]}  Kc6 {[%clk 0:00:47]} 32. Kg4 {[%clk 0:00:02]}  Re6 {[%clk 0:00:47]} 33. Kf3 {[%clk 0:00:02]}  c4 {[%clk 0:00:47]} 34. Bd2 {[%clk 0:00:02]}  b5 {[%clk 0:00:47]} 35. Bb4 {[%clk 0:00:02]}  Kb6 {[%clk 0:00:46]} 36. Rd2 {[%clk 0:00:02]}  a5 {[%clk 0:00:46]} 37. Bf8 {[%clk 0:00:02]}  b4 {[%clk 0:00:45]} 38. Rd8 {[%clk 0:00:03]}  Kb5 {[%clk 0:00:45]} 39. Rb8+ {[%clk 0:00:02]}  Ka4 {[%clk 0:00:45]} 40. Ra8 {[%clk 0:00:02]}  c3 {[%clk 0:00:44]} 41. Rc8 {[%clk 0:00:02]}  Ka3 {[%clk 0:00:43]} 42. Rxc3+ {[%clk 0:00:03]}  Kxa2 {[%clk 0:00:42]} 43. Rc2+ {[%clk 0:00:03]}  Kb1 {[%clk 0:00:41]} 44. Rc8 {[%clk 0:00:02]}  Rb6 {[%clk 0:00:39]} 45. Bc5 {[%clk 0:00:02]}  Rb5 {[%clk 0:00:38]} 46. Ke4 {[%clk 0:00:01]}  b3 {[%clk 0:00:38]} 47. Kd3 {[%clk 0:00:02]}  b2 {[%clk 0:00:38]} 48. Ba3 {[%clk 0:00:01]}  Ka2 {[%clk 0:00:37]} 49. Bxb2 {[%clk 0:00:01]}  Kxb2 {[%clk 0:00:38]} 50. Rc4 {[%clk 0:00:01]}  Kb3 {[%clk 0:00:36]} 51. Rc3+ {[%clk 0:00:01]}  Ka2 {[%clk 0:00:36]} 52. Rc2+ {[%clk 0:00:01]}  Ka3 {[%clk 0:00:35]} 53. Rc1 {[%clk 0:00:01]}  a4 {[%clk 0:00:35]} 0-1


[Site "https://www.chess.com"]

[Event "Titled Tuesday Blitz June 8 2021"]
[White "Ibrayev, Nurlan"]
[Black "Narayanan.S.L"]
[WhiteFideId "13700650"]
[BlackFideId "5058422"]
[WhiteElo "2366"]
[BlackElo "2617"]
[Result "0-1"]
[Round "01"]
[TimeControl "180+1"]
[Date "2021.06.08"]
[WhiteClock "0:01:21"]
[BlackClock "0:01:52"]

1. d4 {[%clk 0:03:00]}  c5 {[%clk 0:02:59]} 2. d5 {[%clk 0:03:00]}  e5 {[%clk 0:02:59]} 3. e4 {[%clk 0:02:59]}  d6 {[%clk 0:02:59]} 4. Nc3 {[%clk 0:02:59]}  a6 {[%clk 0:02:59]} 5. a4 {[%clk 0:02:59]}  g6 {[%clk 0:02:59]} 6. Be2 {[%clk 0:02:57]}  h5 {[%clk 0:02:58]} 7. Nf3 {[%clk 0:02:57]}  Bg4 {[%clk 0:02:58]} 8. Nd2 {[%clk 0:02:56]}  Bxe2 {[%clk 0:02:55]} 9. Qxe2 {[%clk 0:02:56]}  Nd7 {[%clk 0:02:52]} 10. Nc4 {[%clk 0:02:55]}  Nb6 {[%clk 0:02:51]} 11. Na3 {[%clk 0:02:53]}  Bh6 {[%clk 0:02:48]} 12. O-O {[%clk 0:02:45]}  Bxc1 {[%clk 0:02:47]} 13. Raxc1 {[%clk 0:02:44]}  Nf6 {[%clk 0:02:48]} 14. a5 {[%clk 0:02:43]}  Nbd7 {[%clk 0:02:47]} 15. Nc4 {[%clk 0:02:43]}  Qe7 {[%clk 0:02:48]} 16. h3 {[%clk 0:02:26]}  h4 {[%clk 0:02:45]} 17. Rb1 {[%clk 0:02:05]}  Nh5 {[%clk 0:02:33]} 18. b4 {[%clk 0:02:05]}  Nf4 {[%clk 0:02:34]} 19. Qf3 {[%clk 0:01:55]}  cxb4 {[%clk 0:02:33]} 20. Rxb4 {[%clk 0:01:54]}  Nc5 {[%clk 0:02:34]} 21. Nb6 {[%clk 0:01:45]}  Rd8 {[%clk 0:02:33]} 22. Ne2 {[%clk 0:01:44]}  Nxe2+ {[%clk 0:02:13]} 23. Qxe2 {[%clk 0:01:44]}  O-O {[%clk 0:02:14]} 24. Rfb1 {[%clk 0:01:41]}  Kg7 {[%clk 0:02:12]} 25. Na4 {[%clk 0:01:40]}  Nxa4 {[%clk 0:02:09]} 26. Rxa4 {[%clk 0:01:40]}  Rd7 {[%clk 0:02:09]} 27. Rab4 {[%clk 0:01:38]}  Rc8 {[%clk 0:02:10]} 28. Rb6 {[%clk 0:01:35]}  Rc5 {[%clk 0:02:09]} 29. Qd2 {[%clk 0:01:29]}  Rdc7 {[%clk 0:02:06]} 30. Qb4 {[%clk 0:01:27]}  Rxc2 {[%clk 0:01:52]} 31. Qxd6 {[%clk 0:01:23]}  Rc1+ {[%clk 0:01:52]} 32. Rxc1 {[%clk 0:01:20]}  Rxc1+ {[%clk 0:01:52]} 33. Kh2 {[%clk 0:01:21]}  Qg5 {[%clk 0:01:52]} 0-1


[Site "https://www.chess.com"]

[Event "Titled Tuesday Blitz June 8 2021"]
[White "Ivanisevic, Ivan"]
[Black "Krzywda, Andrzej"]
[WhiteFideId "912417"]
[BlackFideId "1114565"]
[WhiteElo "2499"]
[BlackElo "2100"]
[Result "0-1"]
[Round "01"]
[TimeControl "180+1"]
[Date "2021.06.08"]
[WhiteClock "0:00:02"]
[BlackClock "0:00:17"]

1. d4 {[%clk 0:03:00]}  Nf6 {[%clk 0:02:58]} 2. c4 {[%clk 0:03:00]}  c5 {[%clk 0:02:58]} 3. d5 {[%clk 0:03:00]}  Ne4 {[%clk 0:02:59]} 4. Qc2 {[%clk 0:02:48]}  f5 {[%clk 0:02:52]} 5. Nd2 {[%clk 0:02:45]}  Qa5 {[%clk 0:02:46]} 6. g4 {[%clk 0:02:38]}  d6 {[%clk 0:02:42]} 7. Bg2 {[%clk 0:02:32]}  Nd7 {[%clk 0:02:21]} 8. gxf5 {[%clk 0:02:29]}  Nef6 {[%clk 0:02:06]} 9. Nh3 {[%clk 0:02:21]}  Ne5 {[%clk 0:02:03]} 10. O-O {[%clk 0:02:19]}  g6 {[%clk 0:02:03]} 11. Ng5 {[%clk 0:02:02]}  Bxf5 {[%clk 0:01:58]} 12. e4 {[%clk 0:02:02]}  Bd7 {[%clk 0:01:53]} 13. f4 {[%clk 0:02:02]}  Neg4 {[%clk 0:01:52]} 14. Ndf3 {[%clk 0:02:02]}  Bg7 {[%clk 0:01:41]} 15. Bd2 {[%clk 0:01:47]}  Qb6 {[%clk 0:01:41]} 16. Rae1 {[%clk 0:01:40]}  O-O {[%clk 0:01:39]} 17. Ne6 {[%clk 0:01:22]}  Bxe6 {[%clk 0:01:33]} 18. dxe6 {[%clk 0:01:23]}  Qc7 {[%clk 0:01:23]} 19. Kh1 {[%clk 0:01:09]}  b5 {[%clk 0:01:20]} 20. f5 {[%clk 0:00:53]}  bxc4 {[%clk 0:01:14]} 21. fxg6 {[%clk 0:00:51]}  hxg6 {[%clk 0:01:15]} 22. e5 {[%clk 0:00:49]}  dxe5 {[%clk 0:01:14]} 23. Qxg6 {[%clk 0:00:48]}  e4 {[%clk 0:01:08]} 24. Rxe4 {[%clk 0:00:30]}  Nxe4 {[%clk 0:01:03]} 25. Qxe4 {[%clk 0:00:21]}  Rxf3 {[%clk 0:00:54]} 26. Qxa8+ {[%clk 0:00:19]}  Rf8 {[%clk 0:00:55]} 27. Qxf8+ {[%clk 0:00:19]}  Bxf8 {[%clk 0:00:55]} 28. Bf4 {[%clk 0:00:13]}  Qd8 {[%clk 0:00:51]} 29. Bh3 {[%clk 0:00:13]}  Qd5+ {[%clk 0:00:47]} 30. Bg2 {[%clk 0:00:12]}  Qd3 {[%clk 0:00:44]} 31. h4 {[%clk 0:00:12]}  Bh6 {[%clk 0:00:43]} 32. Bb8 {[%clk 0:00:09]}  Be3 {[%clk 0:00:39]} 33. Bf3 {[%clk 0:00:08]}  Nf2+ {[%clk 0:00:38]} 34. Kh2 {[%clk 0:00:09]}  Qd2 {[%clk 0:00:36]} 35. Kg3 {[%clk 0:00:08]}  Qxb2 {[%clk 0:00:27]} 36. Bf4 {[%clk 0:00:05]}  Bxf4+ {[%clk 0:00:26]} 37. Kxf4 {[%clk 0:00:06]}  Qd4+ {[%clk 0:00:25]} 38. Kg3 {[%clk 0:00:06]}  Ne4+ {[%clk 0:00:25]} 39. Kh3 {[%clk 0:00:06]}  Qe3 {[%clk 0:00:24]} 40. Kg4 {[%clk 0:00:05]}  Nf2+ {[%clk 0:00:23]} 41. Kg3 {[%clk 0:00:05]}  Nd3 {[%clk 0:00:22]} 42. Kg2 {[%clk 0:00:04]}  Qxe6 {[%clk 0:00:20]} 43. Kg3 {[%clk 0:00:04]}  Qe5+ {[%clk 0:00:19]} 44. Kg2 {[%clk 0:00:03]}  Kh8 {[%clk 0:00:20]} 45. Bg4 {[%clk 0:00:03]}  Nf4+ {[%clk 0:00:19]} 46. Kf3 {[%clk 0:00:02]}  Qe2+ {[%clk 0:00:17]} 47. Kxf4 {[%clk 0:00:02]}  Qxf1+ {[%clk 0:00:18]} 48. Kg5 {[%clk 0:00:03]}  c3 {[%clk 0:00:17]} 49. h5 {[%clk 0:00:02]}  c2 {[%clk 0:00:17]} 0-1


[Site "https://www.chess.com"]

[Event "Titled Tuesday Blitz June 8 2021"]
[White "Kakabayev, Mergen"]
[Black "Samadov, Read"]
[WhiteFideId "14002990"]
[BlackFideId "13417444"]
[WhiteElo "2433"]
[BlackElo "2807"]
[Result "1/2-1/2"]
[Round "01"]
[TimeControl "180+1"]
[Date "2021.06.08"]
[WhiteClock "0:00:17"]
[BlackClock "0:00:16"]

1. e4 {[%clk 0:03:00]}  e5 {[%clk 0:02:58]} 2. Nf3 {[%clk 0:02:59]}  Nc6 {[%clk 0:02:58]} 3. Bb5 {[%clk 0:02:59]}  a6 {[%clk 0:02:57]} 4. Ba4 {[%clk 0:02:59]}  Nf6 {[%clk 0:02:57]} 5. O-O {[%clk 0:02:58]}  b5 {[%clk 0:02:57]} 6. Bb3 {[%clk 0:02:58]}  Be7 {[%clk 0:02:57]} 7. Re1 {[%clk 0:02:58]}  O-O {[%clk 0:02:57]} 8. c3 {[%clk 0:02:58]}  d6 {[%clk 0:02:57]} 9. h3 {[%clk 0:02:58]}  Be6 {[%clk 0:02:55]} 10. Bc2 {[%clk 0:02:52]}  Re8 {[%clk 0:02:26]} 11. d4 {[%clk 0:02:52]}  exd4 {[%clk 0:02:26]} 12. cxd4 {[%clk 0:02:46]}  Nb4 {[%clk 0:02:26]} 13. Bb3 {[%clk 0:02:45]}  Bxb3 {[%clk 0:02:17]} 14. Qxb3 {[%clk 0:02:46]}  d5 {[%clk 0:02:15]} 15. e5 {[%clk 0:02:42]}  Ne4 {[%clk 0:02:14]} 16. Nc3 {[%clk 0:02:42]}  Nxc3 {[%clk 0:02:12]} 17. Qxc3 {[%clk 0:02:20]}  Qd7 {[%clk 0:02:11]} 18. Bd2 {[%clk 0:02:16]}  a5 {[%clk 0:02:05]} 19. Rec1 {[%clk 0:02:11]}  Rec8 {[%clk 0:01:54]} 20. a3 {[%clk 0:02:10]}  Na6 {[%clk 0:01:54]} 21. Qc6 {[%clk 0:01:41]}  Qxc6 {[%clk 0:01:53]} 22. Rxc6 {[%clk 0:01:42]}  Nb8 {[%clk 0:01:53]} 23. Rc2 {[%clk 0:01:41]}  Nd7 {[%clk 0:01:53]} 24. Rac1 {[%clk 0:01:39]}  c5 {[%clk 0:01:52]} 25. dxc5 {[%clk 0:01:38]}  Rxc5 {[%clk 0:01:52]} 26. Rxc5 {[%clk 0:01:37]}  Bxc5 {[%clk 0:01:50]} 27. Bxa5 {[%clk 0:01:24]}  Rxa5 {[%clk 0:01:31]} 28. b4 {[%clk 0:01:23]}  Bxb4 {[%clk 0:01:32]} 29. axb4 {[%clk 0:01:22]}  Ra8 {[%clk 0:01:32]} 30. Rc7 {[%clk 0:01:20]}  Rd8 {[%clk 0:01:22]} 31. Rb7 {[%clk 0:01:17]}  Nf8 {[%clk 0:01:22]} 32. Nd4 {[%clk 0:01:12]}  Ne6 {[%clk 0:01:17]} 33. Nxe6 {[%clk 0:01:06]}  fxe6 {[%clk 0:01:17]} 34. Kf1 {[%clk 0:01:07]}  Rc8 {[%clk 0:01:14]} 35. Rxb5 {[%clk 0:01:05]}  Rc2 {[%clk 0:01:12]} 36. Rb7 {[%clk 0:01:01]}  Rb2 {[%clk 0:01:10]} 37. b5 {[%clk 0:01:01]}  h6 {[%clk 0:01:08]} 38. b6 {[%clk 0:01:01]}  Kh7 {[%clk 0:01:08]} 39. f4 {[%clk 0:00:57]}  Kg6 {[%clk 0:01:07]} 40. g4 {[%clk 0:00:57]}  Rb3 {[%clk 0:01:03]} 41. Ke2 {[%clk 0:00:55]}  h5 {[%clk 0:00:55]} 42. Kd2 {[%clk 0:00:46]}  h4 {[%clk 0:00:47]} 43. Kc2 {[%clk 0:00:46]}  Rb4 {[%clk 0:00:47]} 44. Kc3 {[%clk 0:00:45]}  Rxf4 {[%clk 0:00:43]} 45. Re7 {[%clk 0:00:44]}  Rc4+ {[%clk 0:00:41]} 46. Kd3 {[%clk 0:00:40]}  Rb4 {[%clk 0:00:37]} 47. Rxe6+ {[%clk 0:00:39]}  Kf7 {[%clk 0:00:36]} 48. Rd6 {[%clk 0:00:38]}  Ke7 {[%clk 0:00:35]} 49. Kc3 {[%clk 0:00:37]}  Rc4+ {[%clk 0:00:31]} 50. Kb3 {[%clk 0:00:37]}  Rc8 {[%clk 0:00:29]} 51. b7 {[%clk 0:00:33]}  Rb8 {[%clk 0:00:27]} 52. Rb6 {[%clk 0:00:33]}  Kd7 {[%clk 0:00:26]} 53. Kc3 {[%clk 0:00:22]}  Kc7 {[%clk 0:00:26]} 54. Rb1 {[%clk 0:00:22]}  Rxb7 {[%clk 0:00:24]} 55. Rxb7+ {[%clk 0:00:21]}  Kxb7 {[%clk 0:00:24]} 56. Kd4 {[%clk 0:00:22]}  Kc6 {[%clk 0:00:24]} 57. e6 {[%clk 0:00:19]}  Kd6 {[%clk 0:00:24]} 58. e7 {[%clk 0:00:20]}  Kxe7 {[%clk 0:00:24]} 59. Kxd5 {[%clk 0:00:20]}  Kf6 {[%clk 0:00:24]} 60. Kd6 {[%clk 0:00:20]}  Kf7 {[%clk 0:00:16]} 61. Ke5 {[%clk 0:00:20]}  Kg6 {[%clk 0:00:15]} 62. Kf4 {[%clk 0:00:17]}  Kf6 {[%clk 0:00:15]} 63. g5+ {[%clk 0:00:17]}  Ke6 {[%clk 0:00:15]} 64. Kg4 {[%clk 0:00:17]}  g6 {[%clk 0:00:16]} 65. Kf4 {[%clk 0:00:16]}  Kd5 {[%clk 0:00:15]} 66. Kg4 {[%clk 0:00:16]}  Ke4 {[%clk 0:00:15]} 67. Kxh4 {[%clk 0:00:17]}  Kf4 {[%clk 0:00:16]} 1/2-1/2


[Site "https://www.chess.com"]

[Event "Titled Tuesday Blitz June 8 2021"]
[White "Kazakouski, Valery"]
[Black "Sokolin, Leonid"]
[WhiteFideId "13507443"]
[BlackFideId "2009161"]
[WhiteElo "2546"]
[BlackElo "2394"]
[Result "1-0"]
[Round "01"]
[TimeControl "180+1"]
[Date "2021.06.08"]
[WhiteClock "0:00:35"]
[BlackClock "0:00:07"]

1. d4 {[%clk 0:03:00]}  e6 {[%clk 0:02:59]} 2. c4 {[%clk 0:03:00]}  Bb4+ {[%clk 0:02:53]} 3. Bd2 {[%clk 0:03:00]}  a5 {[%clk 0:02:52]} 4. e4 {[%clk 0:03:00]}  d5 {[%clk 0:02:50]} 5. cxd5 {[%clk 0:02:48]}  exd5 {[%clk 0:02:50]} 6. e5 {[%clk 0:02:48]}  Ne7 {[%clk 0:02:51]} 7. Nc3 {[%clk 0:02:41]}  c5 {[%clk 0:02:51]} 8. a3 {[%clk 0:02:37]}  Bxc3 {[%clk 0:02:49]} 9. bxc3 {[%clk 0:02:38]}  Nbc6 {[%clk 0:02:47]} 10. a4 {[%clk 0:02:35]}  cxd4 {[%clk 0:02:43]} 11. cxd4 {[%clk 0:02:35]}  Nxd4 {[%clk 0:02:42]} 12. Be3 {[%clk 0:02:13]}  Ndf5 {[%clk 0:02:35]} 13. Bc5 {[%clk 0:02:12]}  O-O {[%clk 0:02:29]} 14. Nf3 {[%clk 0:02:12]}  Re8 {[%clk 0:02:25]} 15. Bd3 {[%clk 0:01:36]}  Nc6 {[%clk 0:02:16]} 16. O-O {[%clk 0:01:36]}  b6 {[%clk 0:02:07]} 17. Ba3 {[%clk 0:01:34]}  Nxe5 {[%clk 0:02:03]} 18. Nxe5 {[%clk 0:01:34]}  Rxe5 {[%clk 0:02:02]} 19. Re1 {[%clk 0:01:35]}  Rxe1+ {[%clk 0:01:59]} 20. Qxe1 {[%clk 0:01:36]}  Be6 {[%clk 0:01:59]} 21. Qe5 {[%clk 0:01:33]}  Qf6 {[%clk 0:01:54]} 22. Qxf6 {[%clk 0:01:33]}  gxf6 {[%clk 0:01:54]} 23. Rb1 {[%clk 0:01:34]}  Rc8 {[%clk 0:01:43]} 24. Bb2 {[%clk 0:01:26]}  Kg7 {[%clk 0:01:27]} 25. f3 {[%clk 0:01:23]}  Nd6 {[%clk 0:01:17]} 26. Bd4 {[%clk 0:01:13]}  Bf5 {[%clk 0:01:16]} 27. Rxb6 {[%clk 0:01:13]}  Bxd3 {[%clk 0:01:12]} 28. Rxd6 {[%clk 0:01:13]}  Rc1+ {[%clk 0:01:11]} 29. Kf2 {[%clk 0:01:13]}  Rc2+ {[%clk 0:01:09]} 30. Ke3 {[%clk 0:01:13]}  Bc4 {[%clk 0:01:03]} 31. Bxf6+ {[%clk 0:01:13]}  Kg6 {[%clk 0:01:03]} 32. Bd4+ {[%clk 0:01:00]}  Kf5 {[%clk 0:00:55]} 33. Rf6+ {[%clk 0:00:36]}  Kg5 {[%clk 0:00:55]} 34. h4+ {[%clk 0:00:36]}  Kxh4 {[%clk 0:00:53]} 35. Kf4 {[%clk 0:00:36]}  h5 {[%clk 0:00:49]} 36. Rh6 {[%clk 0:00:35]}  Rxg2 {[%clk 0:00:12]} 37. Bf6+ {[%clk 0:00:34]}  Rg5 {[%clk 0:00:08]} 38. Bxg5+ {[%clk 0:00:34]}  Kh3 {[%clk 0:00:08]} 39. Rxh5+ {[%clk 0:00:35]}  Kg2 {[%clk 0:00:08]} 40. Bf6 {[%clk 0:00:35]}  Kf2 {[%clk 0:00:07]} 41. Bc3 {[%clk 0:00:35]}  Ke2 {[%clk 0:00:07]} 42. Bxa5 {[%clk 0:00:35]} 1-0


[Site "https://www.chess.com"]

[Event "Titled Tuesday Blitz June 8 2021"]
[White "Koelle, Tobias"]
[Black "Quparadze, Giga"]
[WhiteFideId "16207378"]
[BlackFideId "13602250"]
[WhiteElo "2364"]
[BlackElo "2658"]
[Result "0-1"]
[Round "01"]
[TimeControl "180+1"]
[Date "2021.06.08"]
[WhiteClock "0:02:15"]
[BlackClock "0:02:41"]

1. d4 {[%clk 0:02:54]}  Nf6 {[%clk 0:02:59]} 2. c4 {[%clk 0:02:53]}  e6 {[%clk 0:02:59]} 3. Nc3 {[%clk 0:02:52]}  Bb4 {[%clk 0:02:58]} 4. Qc2 {[%clk 0:02:48]}  Nc6 {[%clk 0:02:58]} 5. Nf3 {[%clk 0:02:47]}  d6 {[%clk 0:02:52]} 6. e4 {[%clk 0:02:46]}  O-O {[%clk 0:02:49]} 7. Bd3 {[%clk 0:02:45]}  e5 {[%clk 0:02:49]} 8. a3 {[%clk 0:02:30]}  exd4 {[%clk 0:02:45]} 9. axb4 {[%clk 0:02:21]}  Nxb4 {[%clk 0:02:46]} 10. Qd2 {[%clk 0:02:20]}  dxc3 {[%clk 0:02:43]} 11. bxc3 {[%clk 0:02:21]}  Nxd3+ {[%clk 0:02:42]} 12. Qxd3 {[%clk 0:02:22]}  Nxe4 {[%clk 0:02:42]} 13. O-O {[%clk 0:02:16]}  Nc5 {[%clk 0:02:42]} 14. Qd4 {[%clk 0:02:15]}  Nb3 {[%clk 0:02:42]} 15. Qxg7+ {[%clk 0:02:12]}  Kxg7 {[%clk 0:02:41]} 16. Bh6+ {[%clk 0:02:13]}  Kxh6 {[%clk 0:02:41]} 17. Ra6 {[%clk 0:02:14]}  bxa6 {[%clk 0:02:41]} 18. Rc1 {[%clk 0:02:15]}  Nxc1 {[%clk 0:02:41]} 19. Ne5 {[%clk 0:02:15]}  dxe5 {[%clk 0:02:41]} 0-1


[Site "https://www.chess.com"]

[Event "Titled Tuesday Blitz June 8 2021"]
[White "Koziol, Kamil"]
[Black "Yilmaz, Mustafa"]
[WhiteFideId "1161555"]
[BlackFideId "6302718"]
[WhiteElo "2461"]
[BlackElo "2851"]
[Result "0-1"]
[Round "01"]
[TimeControl "180+1"]
[Date "2021.06.08"]
[WhiteClock "0:00:22"]
[BlackClock "0:00:15"]

1. e4 {[%clk 0:03:00]}  c5 {[%clk 0:02:57]} 2. Nf3 {[%clk 0:02:53]}  Nc6 {[%clk 0:02:57]} 3. Bb5 {[%clk 0:02:53]}  e6 {[%clk 0:02:57]} 4. Bxc6 {[%clk 0:02:44]}  bxc6 {[%clk 0:02:56]} 5. e5 {[%clk 0:02:44]}  f6 {[%clk 0:02:38]} 6. h4 {[%clk 0:02:33]}  fxe5 {[%clk 0:02:32]} 7. Nxe5 {[%clk 0:02:33]}  Qf6 {[%clk 0:02:32]} 8. Qe2 {[%clk 0:02:09]}  Bd6 {[%clk 0:02:25]} 9. Ng4 {[%clk 0:02:04]}  Qg6 {[%clk 0:02:17]} 10. d3 {[%clk 0:02:03]}  Nf6 {[%clk 0:02:10]} 11. Nxf6+ {[%clk 0:01:49]}  gxf6 {[%clk 0:02:11]} 12. g3 {[%clk 0:01:47]}  Rb8 {[%clk 0:01:48]} 13. Nc3 {[%clk 0:01:44]}  O-O {[%clk 0:01:43]} 14. Ne4 {[%clk 0:01:31]}  Be5 {[%clk 0:01:33]} 15. h5 {[%clk 0:01:20]}  Qg7 {[%clk 0:01:29]} 16. Nxc5 {[%clk 0:01:02]}  Bxb2 {[%clk 0:01:04]} 17. Bxb2 {[%clk 0:01:02]}  Rxb2 {[%clk 0:01:05]} 18. Nb3 {[%clk 0:01:01]}  f5 {[%clk 0:01:03]} 19. Qd2 {[%clk 0:00:59]}  Rxb3 {[%clk 0:01:02]} 20. axb3 {[%clk 0:00:47]}  Qxa1+ {[%clk 0:01:01]} 21. Ke2 {[%clk 0:00:48]}  Qxh1 {[%clk 0:00:58]} 22. Qg5+ {[%clk 0:00:48]}  Kf7 {[%clk 0:00:58]} 23. Qh6 {[%clk 0:00:45]}  Ba6 {[%clk 0:00:32]} 24. Qxh7+ {[%clk 0:00:44]}  Ke8 {[%clk 0:00:32]} 25. Qg6+ {[%clk 0:00:43]}  Rf7 {[%clk 0:00:30]} 26. Qg8+ {[%clk 0:00:42]}  Ke7 {[%clk 0:00:30]} 27. Qg5+ {[%clk 0:00:43]}  Kd6 {[%clk 0:00:26]} 28. Qf4+ {[%clk 0:00:42]}  e5 {[%clk 0:00:26]} 29. Qb4+ {[%clk 0:00:42]}  Ke6 {[%clk 0:00:24]} 30. Qa5 {[%clk 0:00:36]}  Qxh5+ {[%clk 0:00:23]} 31. Kd2 {[%clk 0:00:36]}  Qh6+ {[%clk 0:00:23]} 32. Kc3 {[%clk 0:00:35]}  Bb5 {[%clk 0:00:18]} 33. Qc7 {[%clk 0:00:33]}  Qc1 {[%clk 0:00:17]} 34. Qd8 {[%clk 0:00:29]}  Qe1+ {[%clk 0:00:16]} 35. Kb2 {[%clk 0:00:29]}  Qxf2 {[%clk 0:00:16]} 36. Qe8+ {[%clk 0:00:29]}  Re7 {[%clk 0:00:17]} 37. Qg6+ {[%clk 0:00:25]}  Kd5 {[%clk 0:00:17]} 38. Qg8+ {[%clk 0:00:26]}  Kc5 {[%clk 0:00:16]} 39. Qf8 {[%clk 0:00:25]}  Qd4+ {[%clk 0:00:15]} 40. Kb1 {[%clk 0:00:24]}  Qd6 {[%clk 0:00:15]} 41. Qxf5 {[%clk 0:00:23]}  Kb6 {[%clk 0:00:15]} 42. Qf8 {[%clk 0:00:23]}  Kb7 {[%clk 0:00:15]} 43. Qd8 {[%clk 0:00:22]}  e4 {[%clk 0:00:15]} 0-1


[Site "https://www.chess.com"]